[Event "HUN-ch U8-U18 2019"]
[Site "Balatonlelle"]
[Date "2019.06.23"]
[Round "3.20"]
[White "Hatala, Csaba Laszlo"]
[Black "Barasits, Balint"]
[Result "1/2-1/2"]
[ECO "C42"]
[WhiteElo "1958"]
[BlackElo "2022"]
[Annotator "NA"]
[PlyCount "83"]
[EventDate "2019.06.21"]
[EventType "swiss"]
[EventCountry "HUN"]
[SourceTitle "playchess.com"]
[Source "ChessBase"]
[SourceQuality "1"]
[TimeControl "40/5400+30:1800+30"]

1. e4 {[%emt 0:00:04]} e5 {[%emt 0:00:33]} 2. Nf3 {[%emt 0:00:14]} Nf6 {[%emt 0:00:30]} 3. Nxe5 {[%emt 0:00:14]} d6 {[%emt 0:00:06]} 4. Nf3 {[%emt 0:00:13]} Nxe4 {[%emt 0:00:06]} 5. Nc3 {[%emt 0:00:20]} Nxc3 {[%emt 0:00:36]} 6. dxc3 {[%emt 0:00:08]} Be7 {[%emt 0:00:08]} 7. Be3 {[%emt 0:00:59]} Nd7 {[%emt 0:00:40]} 8. Bd3 {[%emt 0:04:05]} Nc5 {[%emt 0:02:16]} 9. h3 {[%emt 0:10:29]} Be6 {[%emt 0:11:43]} 10. Qd2 {[%emt 0:02:30]} h6 {[%emt 0:13:20]} 11. b3 {[%emt 0:18:44]} Qd7 {[%emt 0:14:54]} 12. Bd4 {[%emt 0:04:57]} Nxd3+ {[%emt 0:07:54]} 13. cxd3 {[%emt 0:01:19]} O-O {[%emt 0:04:30]} 14. c4 {[%emt 0:02:11]} c5 {[%emt 0:02:06]} 15. Be3 {[%emt 0:04:56]} Bf6 {[%emt 0:01:50]} 16. Rd1 {[%emt 0:04:19]} Qc6 {[%emt 0:02:32]} 17. Rc1 {[%emt 0:18:08]} Rfe8 {[%emt 0:02:46]} 18. Qd1 {[%emt 0:00:49]} Rad8 {[%emt 0:12:04]} 19. O-O {[%emt 0:00:38]} d5 {[%emt 0:02:12]} 20. cxd5 {[%emt 0:00:42]} Rxd5 {[%emt 0:00:01]} 21. b4 {[%emt 0:01:53]} Qa6 {[%emt 0:02:06]} 22. Rxc5 {[%emt 0:01:29]} Rxd3 {[%emt 0:00:07]} 23. Qe2 {[%emt 0:03:49]} Red8 {[%emt 0:00:08]} 24. Ra5 {[%emt 0:01:06]} Qc4 {[%emt 0:02:32]} 25. b5 {[%emt 0:03:47]} b6 {[%emt 0:09:36]} 26. Rxa7 {[%emt 0:00:12]} Qxb5 {[%emt 0:00:13]} 27. Ne1 {[%emt 0:04:30]} R3d5 {[%emt 0:05:09]} 28. Qxb5 {[%emt 0:00:14]} Rxb5 {[%emt 0:00:11]} 29. Nf3 {[%emt 0:01:10]} Rb2 {[%emt 0:00:01]} 30. a4 {[%emt 0:00:52]} Rd3 {[%emt 0:02:24]} 31. Rb7 {[%emt 0:02:56]} Rdb3 {[%emt 0:00:31]} 32. Nd4 {[%emt 0:03:38]} Bxd4 {[%emt 0:00:33]} 33. Bxd4 {[%emt 0:00:06]} Ra2 {[%emt 0:00:59]} 34. Rxb6 {[%emt 0:00:15]} Rxb6 {[%emt 0:00:15]} 35. Bxb6 {[%emt 0:00:06]} Rxa4 {[%emt 0:00:03]} 36. Be3 {[%emt 0:00:14]} Ra6 {[%emt 0:00:38]} 37. Kh2 {[%emt 0:00:20]} Bd5 {[%emt 0:00:38]} 38. Rd1 {[%emt 0:00:29]} Be6 {[%emt 0:00:15]} 39. Rd2 {[%emt 0:00:29]} Rc6 {[%emt 0:00:37]} 40. Rb2 {[%emt 0:00:00]} Kh7 {[%emt 0:00:00]} 41. Rd2 {[%emt 0:01:07]} g5 {[%emt 0:02:31]} 42. Rb2 1/2-1/2

[Event "HUN-ch U8-U18 2019"]
[Site "Balatonlelle"]
[Date "2019.06.23"]
[Round "3.20"]
[White "Bodrogi, Bendeguz"]
[Black "Szegedy, Matyas"]
[Result "1/2-1/2"]
[ECO "A20"]
[WhiteElo "1925"]
[BlackElo "1806"]
[Annotator "NA"]
[PlyCount "69"]
[EventDate "2019.06.21"]
[EventType "swiss"]
[EventCountry "HUN"]
[SourceTitle "playchess.com"]
[Source "ChessBase"]
[SourceQuality "1"]
[TimeControl "40/5400+30:1800+30"]

1. c4 {[%emt 0:00:14]} e5 {[%emt 0:00:12]} 2. g3 {[%emt 0:01:05]} Nf6 {[%emt 0:00:54]} 3. Bg2 {[%emt 0:00:24]} c6 {[%emt 0:01:42]} 4. Nf3 {[%emt 0:02:14]} e4 {[%emt 0:01:36]} 5. Nd4 {[%emt 0:01:21]} d5 {[%emt 0:00:25]} 6. cxd5 {[%emt 0:02:53]} Qxd5 {[%emt 0:02:13]} 7. Nc2 {[%emt 0:00:41]} Qh5 {[%emt 0:05:00]} 8. Nc3 {[%emt 0:03:24]} Qg6 {[%emt 0:00:48]} 9. Ne3 {[%emt 0:01:22]} Bb4 {[%emt 0:10:23]} 10. Qc2 {[%emt 0:08:04]} Bxc3 {[%emt 0:02:39]} 11. bxc3 {[%emt 0:02:46]} O-O {[%emt 0:06:33]} 12. O-O {[%emt 0:04:23]} Be6 {[%emt 0:05:02]} 13. d4 {[%emt 0:03:37]} Rd8 {[%emt 0:20:02]} 14. Ba3 {[%emt 0:04:38]} Re8 {[%emt 0:04:08]} 15. Rfd1 {[%emt 0:11:07]} Nbd7 {[%emt 0:05:34]} 16. c4 {[%emt 0:03:04]} Nb6 {[%emt 0:07:31]} 17. Rab1 {[%emt 0:02:09]} Ng4 {[%emt 0:04:03]} 18. Nxg4 {[%emt 0:16:54]} Bxg4 {[%emt 0:01:53]} 19. e3 {[%emt 0:06:58]} Bxd1 {[%emt 0:03:16]} 20. Rxd1 {[%emt 0:00:18]} Qe6 {[%emt 0:01:52]} 21. Bf1 {[%emt 0:01:26]} Rad8 {[%emt 0:02:27]} 22. Rb1 {[%emt 0:00:29]} Rd7 {[%emt 0:03:39]} 23. Bc5 {[%emt 0:01:21]} Nc8 {[%emt 0:01:07]} 24. a4 {[%emt 0:01:49]} b6 {[%emt 0:02:35]} 25. Ba3 {[%emt 0:00:11]} Ne7 {[%emt 0:00:37]} 26. a5 {[%emt 0:01:28]} bxa5 {[%emt 0:00:40]} 27. Qa4 {[%emt 0:00:25]} Ng6 {[%emt 0:00:30]} 28. Bc5 {[%emt 0:04:59]} h5 {[%emt 0:01:56]} 29. Qxa5 {[%emt 0:00:56]} h4 {[%emt 0:00:28]} 30. Bxa7 {[%emt 0:02:02]} hxg3 {[%emt 0:01:19]} 31. hxg3 {[%emt 0:00:19]} Ra8 {[%emt 0:00:23]} 32. Rb8+ {[%emt 0:00:01]} Rxb8 33. Bxb8 {[%emt 0:00:02]} Rb7 {[%emt 0:00:43]} 34. Bf4 {[%emt 0:02:17]} Rb1 {[%emt 0:01:08]} 35. Qa2 {[%emt 0:01:46]} 1/2-1/2

[Event "HUN-ch U8-U18 2019"]
[Site "Balatonlelle"]
[Date "2019.06.23"]
[Round "3.21"]
[White "Szabo, Andrea Erzsebet"]
[Black "Erseki, Tamara"]
[Result "0-1"]
[ECO "D10"]
[WhiteElo "1582"]
[BlackElo "1999"]
[Annotator "NA"]
[PlyCount "48"]
[EventDate "2019.06.21"]
[EventType "swiss"]
[EventCountry "HUN"]
[SourceTitle "playchess.com"]
[Source "ChessBase"]
[SourceQuality "1"]
[TimeControl "40/5400+30:1800+30"]

1. d4 {[%emt 0:00:11]} d5 {[%emt 0:00:42]} 2. Nf3 {[%emt 0:01:19]} Nf6 {[%emt 0:00:15]} 3. c4 {[%emt 0:01:43]} c6 {[%emt 0:03:56]} 4. cxd5 {[%emt 0:09:08]} cxd5 {[%emt 0:00:15]} 5. Bf4 {[%emt 0:01:20]} Nc6 {[%emt 0:02:07]} 6. e3 {[%emt 0:01:20]} Bg4 {[%emt 0:05:06]} 7. h3 {[%emt 0:00:27]} Bh5 {[%emt 0:00:46]} 8. Be2 {[%emt 0:04:27]} e6 {[%emt 0:04:26]} 9. Ne5 {[%emt 0:25:33]} Bxe2 {[%emt 0:05:08]} 10. Qxe2 {[%emt 0:00:43]} Bb4+ {[%emt 0:05:05]} 11. Kf1 {[%emt 0:06:33]} Nxe5 {[%emt 0:15:36]} 12. Bxe5 {[%emt 0:00:33]} O-O {[%emt 0:02:24]} 13. Nd2 {[%emt 0:01:50]} Rc8 {[%emt 0:07:19]} 14. a3 {[%emt 0:04:19]} Bd6 {[%emt 0:02:39]} 15. Nf3 {[%emt 0:08:39]} Ne4 {[%emt 0:05:08]} 16. g3 {[%emt 0:04:04]} Bxe5 {[%emt 0:07:25]} 17. Nxe5 {[%emt 0:00:35]} Rc7 {[%emt 0:00:13]} 18. Nd3 {[%emt 0:02:42]} Qc8 {[%emt 0:00:17]} 19. Kg2 {[%emt 0:06:02]} Rc2 {[%emt 0:01:36]} 20. Qf3 {[%emt 0:05:01]} Qc4 {[%emt 0:05:30]} 21. Rhd1 {[%emt 0:02:06]} Nd2 {[%emt 0:01:17]} 22. Ne5 {[%emt 0:02:58]} Qb3 {[%emt 0:00:23]} 23. Qe2 {[%emt 0:04:17]} Ne4 {[%emt 0:00:56]} 24. Qd3 {[%emt 0:00:33]} Rxf2+ 0-1

[Event "HUN-ch U8-U18 2019"]
[Site "Balatonlelle"]
[Date "2019.06.23"]
[Round "3.21"]
[White "Kossela, Peter"]
[Black "Toth, Gergely"]
[Result "1-0"]
[ECO "B40"]
[WhiteElo "1480"]
[BlackElo "2183"]
[Annotator "NA"]
[PlyCount "53"]
[EventDate "2019.06.21"]
[EventType "swiss"]
[EventCountry "HUN"]
[SourceTitle "playchess.com"]
[Source "ChessBase"]
[SourceQuality "1"]
[TimeControl "40/5400+30:1800+30"]

1. e4 {[%emt 0:00:02]} c5 {[%emt 0:00:09]} 2. Nf3 {[%emt 0:00:16]} e6 {[%emt 0:00:13]} 3. c4 {[%emt 0:00:10]} a6 {[%emt 0:01:02]} 4. d4 {[%emt 0:00:36]} cxd4 {[%emt 0:00:09]} 5. Nxd4 {[%emt 0:00:06]} Qc7 {[%emt 0:00:41]} 6. Bd3 {[%emt 0:04:44]} Nf6 {[%emt 0:02:16]} 7. O-O {[%emt 0:02:39]} Be7 {[%emt 0:01:30]} 8. Nc3 {[%emt 0:04:31]} d6 {[%emt 0:01:57]} 9. Qe2 {[%emt 0:13:04]} O-O {[%emt 0:01:07]} 10. Re1 {[%emt 0:06:49]} Nbd7 {[%emt 0:04:02]} 11. Be3 {[%emt 0:13:54]} b6 {[%emt 0:03:16]} 12. f4 {[%emt 0:05:43]} Bb7 {[%emt 0:04:54]} 13. Qd2 {[%emt 0:03:49]} Nc5 {[%emt 0:02:27]} 14. Bf2 {[%emt 0:00:45]} Ng4 {[%emt 0:01:37]} 15. Rad1 {[%emt 0:04:09]} Nxf2 {[%emt 0:04:12]} 16. Qxf2 {[%emt 0:00:25]} Nxd3 {[%emt 0:00:57]} 17. Rxd3 {[%emt 0:00:15]} Qxc4 {[%emt 0:00:25]} 18. Rh3 {[%emt 0:01:43]} Rac8 {[%emt 0:04:53]} 19. Nf3 {[%emt 0:00:14]} d5 {[%emt 0:00:59]} 20. Kh1 {[%emt 0:06:16]} dxe4 {[%emt 0:08:01]} 21. Ne5 {[%emt 0:04:49]} Qc7 {[%emt 0:02:21]} 22. Qg3 {[%emt 0:05:21]} Rcd8 {[%emt 0:02:19]} 23. Qg4 {[%emt 0:00:47]} Rd2 {[%emt 0:01:24]} 24. Qh5 {[%emt 0:00:29]} h6 {[%emt 0:00:15]} 25. Rg3 {[%emt 0:00:51]} Kh7 {[%emt 0:03:01]} 26. Nxf7 {[%emt 0:01:07]} Bh4 {[%emt 0:00:28]} 27. Qg6+ {[%emt 0:00:13]} 1-0

[Event "HUN-ch U8-U18 2019"]
[Site "Balatonlelle"]
[Date "2019.06.23"]
[Round "3.22"]
[White "Konyves, Almos"]
[Black "Gergely, Daniel"]
[Result "1/2-1/2"]
[ECO "D15"]
[WhiteElo "2125"]
[BlackElo "1427"]
[Annotator "NA"]
[PlyCount "90"]
[EventDate "2019.06.21"]
[EventType "swiss"]
[EventCountry "HUN"]
[SourceTitle "playchess.com"]
[Source "ChessBase"]
[SourceQuality "1"]
[TimeControl "40/5400+30:1800+30"]

1. Nf3 {[%emt 0:00:01]} d5 {[%emt 0:00:14]} 2. d4 {[%emt 0:00:09]} Nf6 {[%emt 0:00:13]} 3. c4 {[%emt 0:00:06]} c6 {[%emt 0:00:05]} 4. Nc3 {[%emt 0:00:13]} dxc4 {[%emt 0:00:07]} 5. e3 {[%emt 0:01:03]} b5 {[%emt 0:00:29]} 6. a4 {[%emt 0:00:29]} Nd5 {[%emt 0:00:47]} 7. axb5 {[%emt 0:00:39]} Nxc3 {[%emt 0:00:21]} 8. bxc3 {[%emt 0:00:04]} cxb5 {[%emt 0:00:11]} 9. Qc2 {[%emt 0:01:57]} Bb7 {[%emt 0:00:39]} 10. e4 {[%emt 0:03:03]} e6 {[%emt 0:02:50]} 11. Rb1 {[%emt 0:00:10]} a6 {[%emt 0:00:25]} 12. Bxc4 {[%emt 0:01:06]} Qc7 {[%emt 0:00:52]} 13. Bd3 {[%emt 0:00:08]} Nd7 {[%emt 0:02:15]} 14. O-O {[%emt 0:05:10]} Be7 {[%emt 0:01:35]} 15. Bd2 {[%emt 0:01:26]} O-O {[%emt 0:02:57]} 16. e5 {[%emt 0:00:54]} h6 {[%emt 0:00:48]} 17. Qc1 {[%emt 0:02:12]} Qd8 {[%emt 0:01:15]} 18. Bxh6 {[%emt 0:14:36]} Bxf3 {[%emt 0:02:29]} 19. gxf3 {[%emt 0:00:42]} Nxe5 {[%emt 0:00:27]} 20. Be4 {[%emt 0:04:15]} Ng6 {[%emt 0:07:03]} 21. Be3 {[%emt 0:06:19]} Rb8 {[%emt 0:03:30]} 22. f4 {[%emt 0:11:54]} f5 {[%emt 0:01:31]} 23. Bh1 {[%emt 0:02:03]} Bd6 {[%emt 0:03:21]} 24. Re1 {[%emt 0:16:12]} Qc7 {[%emt 0:02:07]} 25. Ra1 {[%emt 0:05:44]} Nxf4 {[%emt 0:01:51]} 26. Bxf4 {[%emt 0:03:39]} Bxf4 {[%emt 0:00:08]} 27. Qc2 {[%emt 0:02:39]} Bxh2+ {[%emt 0:00:23]} 28. Kg2 {[%emt 0:01:11]} Rf6 {[%emt 0:00:56]} 29. Qb3 {[%emt 0:02:08]} Rg6+ {[%emt 0:00:38]} 30. Kf3 {[%emt 0:01:33]} Qf4+ {[%emt 0:00:41]} 31. Ke2 {[%emt 0:00:08]} Qd6 {[%emt 0:01:53]} 32. Kd3 {[%emt 0:01:48]} Bf4 {[%emt 0:05:59]} 33. Bf3 {[%emt 0:02:29]} b4 {[%emt 0:02:41]} 34. Qc4 {[%emt 0:02:21]} Rb6 {[%emt 0:05:10]} 35. cxb4 {[%emt 0:01:27]} Qxb4 {[%emt 0:01:09]} 36. Qxb4 {[%emt 0:01:26]} Rxb4 {[%emt 0:00:11]} 37. Rxa6 {[%emt 0:00:39]} Rb3+ {[%emt 0:00:36]} 38. Ke2 {[%emt 0:00:15]} Rb2+ {[%emt 0:00:13]} 39. Kf1 {[%emt 0:00:12]} Bh2 {[%emt 0:02:05]} 40. Bg2 {[%emt 0:00:00]} Rxf2+ {[%emt 0:00:00]} 41. Kxf2 {[%emt 0:00:53]} Bg3+ {[%emt 0:01:52]} 42. Kf1 {[%emt 0:00:18]} Bxe1 {[%emt 0:00:11]} 43. d5 {[%emt 0:01:33]} Bh4 44. Rxe6 Rg3 45. d6 Rd3 1/2-1/2

[Event "HUN-ch U8-U18 2019"]
[Site "Balatonlelle"]
[Date "2019.06.23"]
[Round "3.22"]
[White "Molnar, Liza Dorottya"]
[Black "Sulyok, Eszter"]
[Result "1/2-1/2"]
[ECO "B40"]
[WhiteElo "1559"]
[BlackElo "1840"]
[Annotator "NA"]
[PlyCount "94"]
[EventDate "2019.06.21"]
[EventType "swiss"]
[EventCountry "HUN"]
[SourceTitle "playchess.com"]
[Source "ChessBase"]
[SourceQuality "1"]
[TimeControl "40/5400+30:1800+30"]

1. e4 {[%emt 0:00:05]} c5 {[%emt 0:00:04]} 2. Nf3 {[%emt 0:00:14]} e6 {[%emt 0:00:05]} 3. c3 {[%emt 0:00:13]} d5 {[%emt 0:00:06]} 4. exd5 {[%emt 0:00:40]} Qxd5 {[%emt 0:00:08]} 5. d4 {[%emt 0:02:04]} Nf6 {[%emt 0:00:13]} 6. Be2 {[%emt 0:04:06]} cxd4 {[%emt 0:01:06]} 7. Qxd4 {[%emt 0:01:05]} Nc6 {[%emt 0:05:30]} 8. Qxd5 {[%emt 0:03:50]} Nxd5 {[%emt 0:00:14]} 9. O-O {[%emt 0:02:19]} Be7 {[%emt 0:01:53]} 10. Nbd2 {[%emt 0:09:06]} O-O {[%emt 0:02:57]} 11. Nb3 {[%emt 0:01:27]} a6 {[%emt 0:02:46]} 12. Nbd4 {[%emt 0:05:09]} Nxd4 {[%emt 0:02:02]} 13. Nxd4 {[%emt 0:00:24]} Bf6 {[%emt 0:02:54]} 14. Nb3 {[%emt 0:03:46]} Rb8 {[%emt 0:07:35]} 15. Bf3 {[%emt 0:01:21]} Ne7 {[%emt 0:04:36]} 16. Be3 {[%emt 0:01:52]} b6 {[%emt 0:00:37]} 17. Nd4 {[%emt 0:04:12]} Bd7 {[%emt 0:03:21]} 18. Rfd1 {[%emt 0:06:41]} e5 {[%emt 0:01:00]} 19. Ne2 {[%emt 0:03:48]} Bb5 {[%emt 0:03:39]} 20. Ng3 {[%emt 0:01:47]} Bh4 {[%emt 0:09:20]} 21. Ne4 {[%emt 0:07:39]} f5 {[%emt 0:07:32]} 22. Nd6 {[%emt 0:02:29]} e4 {[%emt 0:02:28]} 23. Nxb5 {[%emt 0:02:52]} exf3 {[%emt 0:02:24]} 24. g3 {[%emt 0:10:28]} axb5 {[%emt 0:00:28]} 25. gxh4 {[%emt 0:00:27]} f4 {[%emt 0:02:00]} 26. Bd4 {[%emt 0:02:27]} Ng6 {[%emt 0:01:36]} 27. h5 {[%emt 0:01:57]} Nh4 {[%emt 0:00:23]} 28. Re1 {[%emt 0:02:12]} Ng2 {[%emt 0:07:53]} 29. Re5 {[%emt 0:03:44]} b4 {[%emt 0:03:05]} 30. cxb4 {[%emt 0:00:25]} Rfd8 {[%emt 0:00:33]} 31. Bc3 {[%emt 0:02:08]} Rb7 {[%emt 0:00:39]} 32. a4 {[%emt 0:03:53]} Rbd7 {[%emt 0:00:16]} 33. h3 {[%emt 0:01:02]} Rd1+ {[%emt 0:04:14]} 34. Rxd1 {[%emt 0:00:02]} Rxd1+ {[%emt 0:00:07]} 35. Kh2 {[%emt 0:00:02]} Ne3 {[%emt 0:00:51]} 36. a5 {[%emt 0:07:50]} bxa5 {[%emt 0:08:58]} 37. bxa5 {[%emt 0:00:06]} Nf1+ {[%emt 0:06:02]} 38. Kg1 {[%emt 0:00:04]} Nd2+ {[%emt 0:00:34]} 39. Kh2 {[%emt 0:00:23]} Nf1+ {[%emt 0:05:36]} 40. Kg1 {[%emt 0:00:00]} Ne3+ {[%emt 0:00:00]} 41. Kh2 {[%emt 0:01:18]} Ra1 {[%emt 0:07:12]} 42. b4 {[%emt 0:13:44]} Rc1 {[%emt 0:00:56]} 43. a6 {[%emt 0:08:57]} Nf1+ {[%emt 0:04:42]} 44. Kg1 {[%emt 0:00:07]} Nd2+ {[%emt 0:00:36]} 45. Kh2 {[%emt 0:00:08]} Nf1+ {[%emt 0:11:04]} 46. Kg1 {[%emt 0:00:13]} Nd2+ {[%emt 0:01:57]} 47. Kh2 {[%emt 0:00:08]} Nf1+ {[%emt 0:01:20]} 1/2-1/2

[Event "HUN-ch U8-U18 2019"]
[Site "Balatonlelle"]
[Date "2019.06.23"]
[Round "3.23"]
[White "Karacsonyi, Kata"]
[Black "Kovacsi, Sara Kata"]
[Result "1-0"]
[ECO "B27"]
[WhiteElo "1798"]
[BlackElo "1570"]
[Annotator "NA"]
[PlyCount "111"]
[EventDate "2019.06.21"]
[EventType "swiss"]
[EventCountry "HUN"]
[SourceTitle "playchess.com"]
[Source "ChessBase"]
[SourceQuality "1"]
[TimeControl "40/5400+30:1800+30"]

1. e4 {[%emt 0:00:13]} c5 {[%emt 0:00:07]} 2. Nf3 {[%emt 0:00:05]} b6 {[%emt 0:00:04]} 3. d4 {[%emt 0:01:14]} cxd4 {[%emt 0:00:07]} 4. Nxd4 {[%emt 0:00:10]} Bb7 {[%emt 0:00:06]} 5. Bd3 {[%emt 0:05:26]} d6 {[%emt 0:01:22]} 6. O-O {[%emt 0:01:07]} Nf6 {[%emt 0:00:20]} 7. Nc3 {[%emt 0:01:52]} g6 {[%emt 0:00:24]} 8. Be3 {[%emt 0:12:45]} Bg7 {[%emt 0:00:30]} 9. h3 {[%emt 0:04:36]} O-O {[%emt 0:01:05]} 10. Qd2 {[%emt 0:06:08]} Re8 {[%emt 0:00:15]} 11. Rad1 {[%emt 0:05:11]} Nbd7 {[%emt 0:02:07]} 12. f4 {[%emt 0:06:12]} a6 {[%emt 0:01:39]} 13. f5 {[%emt 0:04:04]} Nc5 {[%emt 0:04:00]} 14. fxg6 {[%emt 0:04:04]} hxg6 {[%emt 0:01:03]} 15. Qf2 {[%emt 0:08:01]} b5 {[%emt 0:09:14]} 16. a3 {[%emt 0:06:44]} Qc7 {[%emt 0:08:15]} 17. Qh4 {[%emt 0:02:41]} Ncd7 {[%emt 0:03:46]} 18. Nf3 {[%emt 0:03:35]} Rac8 {[%emt 0:05:14]} 19. Bh6 {[%emt 0:07:16]} Qc5+ {[%emt 0:03:37]} 20. Kh1 {[%emt 0:01:04]} Qh5 {[%emt 0:02:05]} 21. Bxg7 {[%emt 0:01:57]} Qxh4 {[%emt 0:03:14]} 22. Nxh4 Kxg7 {[%emt 0:00:09]} 23. Nf3 {[%emt 0:02:46]} Rc5 {[%emt 0:04:20]} 24. Kh2 {[%emt 0:02:26]} Ne5 {[%emt 0:13:02]} 25. Nxe5 {[%emt 0:03:03]} Rxe5 {[%emt 0:00:23]} 26. Rde1 {[%emt 0:01:06]} Rh8 {[%emt 0:07:57]} 27. Rg1 {[%emt 0:02:37]} Bc8 {[%emt 0:14:39]} 28. Nd5 {[%emt 0:01:54]} Nxd5 {[%emt 0:01:38]} 29. exd5 {[%emt 0:00:05]} Rxe1 30. Rxe1 {[%emt 0:00:01]} Kf6 {[%emt 0:07:22]} 31. Rf1+ {[%emt 0:00:20]} Kg7 {[%emt 0:00:07]} 32. Re1 {[%emt 0:00:09]} Kf6 {[%emt 0:00:14]} 33. c4 {[%emt 0:00:39]} bxc4 {[%emt 0:00:16]} 34. Bxc4 {[%emt 0:00:02]} Bb7 {[%emt 0:01:15]} 35. g4 {[%emt 0:00:27]} g5 {[%emt 0:00:44]} 36. Kg3 {[%emt 0:00:25]} Bc8 {[%emt 0:04:28]} 37. Re3 {[%emt 0:00:59]} e6 {[%emt 0:01:26]} 38. dxe6 {[%emt 0:00:53]} fxe6 {[%emt 0:00:02]} 39. Rb3 {[%emt 0:01:16]} d5 {[%emt 0:00:31]} 40. Bd3 {[%emt 0:00:00]} a5 {[%emt 0:00:00]} 41. Rb8 {[%emt 0:07:41]} Kg7 {[%emt 0:02:37]} 42. b4 {[%emt 0:03:45]} axb4 {[%emt 0:01:24]} 43. axb4 {[%emt 0:00:30]} e5 {[%emt 0:01:08]} 44. Bf5 {[%emt 0:09:03]} Bxf5 {[%emt 0:03:18]} 45. Rxh8 {[%emt 0:00:59]} Bd3 {[%emt 0:01:01]} 46. Rd8 {[%emt 0:00:50]} Bc4 {[%emt 0:01:17]} 47. b5 {[%emt 0:04:39]} Bxb5 {[%emt 0:01:10]} 48. Rxd5 {[%emt 0:00:07]} Ba4 {[%emt 0:03:02]} 49. Rxe5 {[%emt 0:00:06]} Kf6 {[%emt 0:00:11]} 50. Ra5 {[%emt 0:00:15]} Be8 {[%emt 0:00:43]} 51. Ra6+ {[%emt 0:00:47]} Kg7 {[%emt 0:00:47]} 52. h4 {[%emt 0:00:23]} gxh4+ {[%emt 0:00:20]} 53. Kxh4 {[%emt 0:00:05]} Bg6 {[%emt 0:01:18]} 54. Kg5 {[%emt 0:00:13]} Bd3 {[%emt 0:00:52]} 55. Ra7+ {[%emt 0:00:09]} Kg8 {[%emt 0:00:05]} 56. Kh6 {[%emt 0:00:29]} 1-0

[Event "HUN-ch U8-U18 2019"]
[Site "Balatonlelle"]
[Date "2019.06.23"]
[Round "3.23"]
[White "Kasnya, Peter"]
[Black "Kolimar, Kristof Pal"]
[Result "0-1"]
[ECO "B43"]
[WhiteElo "1496"]
[BlackElo "1979"]
[Annotator "NA"]
[PlyCount "72"]
[EventDate "2019.06.21"]
[EventType "swiss"]
[EventCountry "HUN"]
[SourceTitle "playchess.com"]
[Source "ChessBase"]
[SourceQuality "1"]
[TimeControl "40/5400+30:1800+30"]

1. e4 {[%emt 0:00:19]} c5 {[%emt 0:00:06]} 2. Nf3 {[%emt 0:00:15]} e6 {[%emt 0:00:12]} 3. d4 {[%emt 0:00:06]} cxd4 {[%emt 0:00:30]} 4. Nxd4 {[%emt 0:01:56]} a6 {[%emt 0:00:32]} 5. Nc3 {[%emt 0:00:47]} Qc7 {[%emt 0:00:08]} 6. Be3 {[%emt 0:00:45]} Bb4 {[%emt 0:01:17]} 7. Bd2 {[%emt 0:04:33]} Nf6 {[%emt 0:00:50]} 8. Bd3 {[%emt 0:01:02]} O-O {[%emt 0:02:55]} 9. O-O {[%emt 0:00:30]} Bc5 {[%emt 0:02:28]} 10. Nb3 {[%emt 0:04:26]} Be7 {[%emt 0:00:06]} 11. Kh1 {[%emt 0:00:11]} Nc6 {[%emt 0:02:15]} 12. f4 {[%emt 0:02:18]} d6 {[%emt 0:00:04]} 13. Qf3 {[%emt 0:02:27]} Re8 {[%emt 0:03:01]} 14. Rae1 {[%emt 0:03:37]} Bd7 {[%emt 0:04:48]} 15. a3 {[%emt 0:04:44]} Rac8 {[%emt 0:01:09]} 16. Be3 {[%emt 0:01:41]} b5 {[%emt 0:03:07]} 17. Nd4 {[%emt 0:01:07]} Nxd4 {[%emt 0:04:18]} 18. Bxd4 {[%emt 0:00:46]} e5 {[%emt 0:02:04]} 19. fxe5 {[%emt 0:03:07]} dxe5 {[%emt 0:04:43]} 20. Be3 {[%emt 0:00:49]} Be6 {[%emt 0:02:36]} 21. Bg5 {[%emt 0:03:43]} Nd7 {[%emt 0:03:42]} 22. Bxe7 {[%emt 0:03:37]} Rxe7 {[%emt 0:00:07]} 23. Nd5 {[%emt 0:00:18]} Bxd5 {[%emt 0:00:54]} 24. exd5 {[%emt 0:00:24]} Qd6 {[%emt 0:05:23]} 25. Qh3 {[%emt 0:02:07]} g6 {[%emt 0:01:52]} 26. Qh4 {[%emt 0:12:33]} Rce8 {[%emt 0:03:48]} 27. Re3 {[%emt 0:02:31]} Qxd5 {[%emt 0:08:48]} 28. Rh3 {[%emt 0:01:22]} f5 {[%emt 0:01:25]} 29. c4 {[%emt 0:01:37]} Qc5 {[%emt 0:14:36]} 30. b4 {[%emt 0:01:05]} Qc6 {[%emt 0:00:10]} 31. c5 {[%emt 0:01:45]} e4 {[%emt 0:06:31]} 32. Re1 {[%emt 0:00:21]} Ne5 {[%emt 0:11:43]} 33. Bc2 {[%emt 0:01:13]} Kh8 {[%emt 0:03:03]} 34. Qf4 {[%emt 0:01:28]} Qf6 {[%emt 0:01:41]} 35. Rg3 {[%emt 0:01:10]} Nd3 {[%emt 0:02:30]} 36. Qe3 {[%emt 0:02:47]} f4 0-1

[Event "HUN-ch U8-U18 2019"]
[Site "Balatonlelle"]
[Date "2019.06.23"]
[Round "3.24"]
[White "Megyaszai, Balazs"]
[Black "Vancsisin, Mark"]
[Result "1-0"]
[ECO "C44"]
[WhiteElo "1905"]
[BlackElo "1246"]
[Annotator "NA"]
[PlyCount "67"]
[EventDate "2019.06.21"]
[EventType "swiss"]
[EventCountry "HUN"]
[SourceTitle "playchess.com"]
[Source "ChessBase"]
[SourceQuality "1"]
[TimeControl "40/5400+30:1800+30"]

1. e4 {[%emt 0:00:24]} e5 {[%emt 0:00:27]} 2. Nf3 {[%emt 0:01:26]} Nc6 {[%emt 0:01:17]} 3. d4 {[%emt 0:03:08]} exd4 {[%emt 0:02:38]} 4. Bc4 {[%emt 0:04:09]} Bc5 {[%emt 0:01:31]} 5. Ng5 {[%emt 0:03:46]} Nh6 {[%emt 0:01:16]} 6. Nxf7 {[%emt 0:04:11]} Nxf7 {[%emt 0:01:32]} 7. Bxf7+ {[%emt 0:02:40]} Kxf7 {[%emt 0:01:08]} 8. Qh5+ {[%emt 0:01:23]} g6 {[%emt 0:01:18]} 9. Qxc5 {[%emt 0:02:21]} d5 {[%emt 0:01:26]} 10. O-O {[%emt 0:06:00]} dxe4 {[%emt 0:03:38]} 11. c3 {[%emt 0:04:27]} Bf5 {[%emt 0:05:09]} 12. Bf4 {[%emt 0:05:04]} Re8 {[%emt 0:09:52]} 13. Na3 {[%emt 0:07:17]} Kf6 {[%emt 0:10:39]} 14. Nb5 {[%emt 0:09:16]} Rc8 {[%emt 0:05:57]} 15. Nxd4 {[%emt 0:11:51]} Nxd4 {[%emt 0:05:04]} 16. cxd4 {[%emt 0:00:32]} Re6 {[%emt 0:06:47]} 17. Rac1 {[%emt 0:02:10]} Qe7 {[%emt 0:08:40]} 18. Qc3 {[%emt 0:02:28]} Rc6 {[%emt 0:05:01]} 19. Qg3 {[%emt 0:00:51]} Kf7 {[%emt 0:06:05]} 20. Qb3+ {[%emt 0:02:18]} Kg7 {[%emt 0:02:20]} 21. Be5+ {[%emt 0:01:03]} Kh6 {[%emt 0:00:59]} 22. Qe3+ {[%emt 0:05:37]} g5 {[%emt 0:01:48]} 23. Rxc6+ {[%emt 0:01:00]} bxc6 {[%emt 0:00:15]} 24. f3 {[%emt 0:00:38]} c5 {[%emt 0:02:17]} 25. fxe4 {[%emt 0:01:49]} cxd4 {[%emt 0:00:43]} 26. Qg3 {[%emt 0:01:55]} Re8 {[%emt 0:02:00]} 27. Rxf5 {[%emt 0:00:21]} Kg6 {[%emt 0:01:32]} 28. Rf6+ {[%emt 0:01:31]} Qxf6 {[%emt 0:00:50]} 29. Bxf6 {[%emt 0:00:11]} Kxf6 {[%emt 0:00:06]} 30. Qxc7 {[%emt 0:00:34]} Rxe4 {[%emt 0:00:22]} 31. Qxa7 {[%emt 0:00:36]} Kf5 {[%emt 0:00:30]} 32. Qf7+ {[%emt 0:01:14]} Kg4 {[%emt 0:00:58]} 33. Qf3+ {[%emt 0:00:06]} Kh4 {[%emt 0:00:30]} 34. Qxe4+ {[%emt 0:00:07]} 1-0